{"text_format":"1","workbook":"xlsx","n_sheets":4,"sheets":["Távhő Ökocímke Adatlap","1.táblázat","2.táblázat","3.táblázat"],"not_rendered":{"charts":0,"images":3,"macros":1,"external_links":0,"defined_names":7,"comments":1,"pivot_tables":0},"unopened":[],"bounds":{"document_bytes":16777216,"sheet_cells":100000,"rows_first":2000,"rows_last":500,"rows_between":2000,"halvings":0,"cell_chars":16384,"cell_head_chars":4096},"cells_cut":0,"cells_raw":0,"read":"whole","date_system":"1900"}

{"sheet":"Távhő Ökocímke Adatlap","index":0,"n_rows":38,"n_cols":23,"rows_kept":38,"cut":false,"hidden":false,"merged":[[4,1,4,3],[21,0,21,3],[29,0,29,3],[0,8,0,25],[21,9,22,22],[25,19,25,22],[3,1,3,3],[2,1,2,3]]}
[null,null,null,null,null,null,null,null,"Értékelés"]
["Adatlap"]
["Település neve","Nyíregyháza",null,null,null,null,null,null,null,"OK","Kérjük a szakértő írjon egy OK-ot abba a mezőbe, amelyikhez tartozó adatot rendben találta. "]
["Távhőszolgáltató neve","NYÍRTÁVHŐ Kft.",null,null,null,null,null,null,null,"Megj","Kérjük amennyben a szakértő módosítja a távhőszolgáltató által megadott értéket, úgy írja a megfelelő cellába a módosításhoz tartozó megjegyzést. "]
["Távhőrendszer megnevezése","Nyíregyházi távhőszolgáltatás"]
["Távhőrendszerben értékesített hőmennyiség (GJ/a)",633686,{"$f":"+CONCATENATE(,IF(B6>0,CONCATENATE(\" = \",ROUND(CONVERT(B6,\"GJ\",\"MWh\"),0),\" MWh/a\"),\"\"))","v":" = 176024 MWh/a"}]
[null,"S"]
["Hőforrás/technológia megnevezése",null,"A","B","C","D",null,null,null,{"$f":"C8","v":"A"},{"$f":"D8","v":"B"},{"$f":"E8","v":"C"},{"$f":"F8","v":"D"},{"$f":"#REF!","v":{"$error":"#REF!"}},{"$f":"#REF!","v":{"$error":"#REF!"}},{"$f":"#REF!","v":{"$error":"#REF!"}},{"$f":"#REF!","v":{"$error":"#REF!"}},{"$f":"#REF!","v":{"$error":"#REF!"}},{"$f":"#REF!","v":{"$error":"#REF!"}},{"$f":"#REF!","v":{"$error":"#REF!"}},{"$f":"#REF!","v":{"$error":"#REF!"}},{"$f":"#REF!","v":{"$error":"#REF!"}},{"$f":"#REF!","v":{"$error":"#REF!"}}]
["Távhőtermelési technológia",null,"1. Kizárólagos hőtermelés - szénhidrogének ","9.KET hagyományos gőz-körfolyamatú erőművi blokkban  - nem megújuló","11. KET 1.200 kWe villamos egységteljesítményt meghaladó gázmotorral  - nem megújuló","8. KET kombinált ciklusú erőművi blokkban - nem megújuló",null,null,null,"Megj: ","Megj: ","Megj: ","Megj: ","Megj: ","Megj: ","Megj: ","Megj: ","Megj: ","Megj: ","Megj: ","Megj: ","Megj: ","Megj: "]
["Felhasznált primerenergia fajtája",null,{"$f":"+VLOOKUP(C9,'1.táblázat'!$A$2:$C$22,3,0)","v":"Földgáz"},{"$f":"+VLOOKUP(D9,'1.táblázat'!$A$2:$C$22,3,0)","v":"Földgáz"},{"$f":"+VLOOKUP(E9,'1.táblázat'!$A$2:$C$22,3,0)","v":"Földgáz"},"Földgáz",null,null,null,"Megj: ","Megj: ","Megj: ","Megj: ","Megj: ","Megj: ","Megj: ","Megj: ","Megj: ","Megj: ","Megj: ","Megj: ","Megj: ","Megj: "]
["Qi (GJ)",null,265148,0,{"$f":"38981-40.748","v":38940.252},450136]
["Qi (MWh)",{"$f":"SUM(C12:F12)","v":209506.73666666666},{"$f":"+CONVERT(C11,\"GJ\",\"MWh\")","v":73652.222222222219},{"$f":"+CONVERT(D11,\"GJ\",\"MWh\")","v":0},10816.736666666668,125037.77777777778,null,null,null,"Megj: ","Megj: ","Megj: ","Megj: ","Megj: ","Megj: ","Megj: ","Megj: ","Megj: ","Megj: ","Megj: ","Megj: ","Megj: ","Megj: "]
["ai",null,{"$f":"ROUND(C12/$B$12,4)","v":0.35160000000000002},{"$f":"ROUND(D12/$B$12,4)","v":0},5.16E-2,0.5968,null,null,null,"-","-","-","-","-","-","-","-","-","-","-","-","-","-"]
["ei",null,{"$f":"VLOOKUP(C$9,'1.táblázat'!$A$1:$B$22,2,FALSE)","v":1.1200000000000001},{"$f":"VLOOKUP(D$9,'1.táblázat'!$A$1:$B$22,2,FALSE)","v":0.87},{"$f":"VLOOKUP(E$9,'1.táblázat'!$A$1:$B$22,2,FALSE)","v":0.55000000000000004},{"$f":"VLOOKUP(F$9,'1.táblázat'!$A$1:$B$22,2,FALSE)","v":0.54},null,null,null,"Megj: ","Megj: ","Megj: ","Megj: ","Megj: ","Megj: ","Megj: ","Megj: ","Megj: ","Megj: ","Megj: ","Megj: ","Megj: ","Megj: "]
["h",{"$f":"+IF(B6>0,ROUND((B12-ROUND(CONVERT(B6,\"GJ\",\"MWh\"),0))/B12,4),0.15)","v":0.1598},null,null,null,null,null,null,null,"Megj: ","Megj: ","Megj: ","Megj: ","Megj: ","Megj: ","Megj: ","Megj: ","Megj: ","Megj: ","Megj: ","Megj: ","Megj: ","Megj: "]
["avil",{"$f":"IF(B12<27800,0.011,IF(B12>=139000,0.006,0.008))","v":6.0000000000000001E-3},null,null,null,null,null,null,null,"Megj: ","Megj: ","Megj: ","Megj: ","Megj: ","Megj: ","Megj: ","Megj: ","Megj: ","Megj: ","Megj: ","Megj: ","Megj: ","Megj: "]
["evil",2.5,null,null,null,null,null,null,null,"Megj: ","Megj: ","Megj: ","Megj: ","Megj: ","Megj: ","Megj: ","Megj: ","Megj: ","Megj: ","Megj: ","Megj: ","Megj: ","Megj: "]
["eSUS,távhő,i",{"$f":"SUM(C18:F18)","v":0},{"$f":"VLOOKUP(C10,'3.táblázat'!$A$1:$B$19,2,FALSE)","v":0},{"$f":"VLOOKUP(D10,'3.táblázat'!$A$1:$B$19,2,FALSE)","v":0},{"$f":"VLOOKUP(E10,'3.táblázat'!$A$1:$B$19,2,FALSE)","v":0},{"$f":"VLOOKUP(F10,'3.táblázat'!$A$1:$B$19,2,FALSE)","v":0},null,null,null,"-","-","-","-","-","-","-","-","-","-","-","-","-","-"]
["bvil,res",0.1,null,null,null,null,null,null,null,"Megj: ","Megj: ","Megj: ","Megj: ","Megj: ","Megj: ","Megj: ","Megj: ","Megj: ","Megj: ","Megj: ","Megj: ","Megj: ","Megj: "]
["SPF (csak hőszivattyús termelés esetén)",3,null,null,null,null,null,null,null,"-","-","-","-","-","-","-","-","-","-","-","-","-","-"]
[]
["Primer energia átalakítási tényező",null,null,null,null,null,null,null,null,"A ________________Kft. _______________távhőrendszerrel (  _______________  GJ  primerenergiafelhasználással) pályázott a Távhő Ökocímkére. A pályázat megfelel a mind a formai mind a tartalmi követelményeknek, a megadott adatokat rendben találtam /  a fenn jelölt cellákban talált értékeket módosítottam "]
[]
[null,null,null,null,null,null,null,null,null,"Az Értékelő bizottság számára elfogadásra javaslom, az alábbi feltételekkel _________________."]
[]
[null,null,null,null,null,null,null,null,null,null,null,null,null,null,null,null,null,null,null,"Szakértő "]
[null,null,"A távhőrendszer primer energia átalakítási tényezőjének értéke (kWh/kWh)",null,null,null,null,null,null,null,null,null,null,null,{"$f":"C27","v":"A távhőrendszer primer energia átalakítási tényezőjének értéke (kWh/kWh)"}]
[null,null,{"$f":"1/(1-B15)*((B17*B16)+SUMPRODUCT(C13:F13,C14:F14))","v":0.90388478933587246},null,null,null,null,null,null,null,null,null,null,null,{"$f":"C28","v":0.90388478933587246},"OK"]
[]
["A megújuló energiaforrásokkal termelt távhő részarányának kiszámítása"]
[]
[]
[]
[]
[]
[]
[null,null,"A távhőrendszerben megújuló energiaforrásokkal termelt távhő részaránya",null,null,null,null,null,null,null,null,null,null,null,{"$f":"C37","v":"A távhőrendszerben megújuló energiaforrásokkal termelt távhő részaránya"}]
[null,null,{"$f":"(SUMPRODUCT(C13:F13,C18:F18)+B16*B18)/(1+B16)","v":0},null,null,null,null,null,null,null,null,null,null,null,{"$f":"C38","v":0},"OK"]

{"sheet":"1.táblázat","index":1,"n_rows":25,"n_cols":3,"rows_kept":25,"cut":false,"hidden":false,"merged":[]}
["Távhőtermelő technológia","Távhőtermelő technológia\nprimerenergia-átalakítási tényezője (ei)","Tüzelőanyag"]
["-",0,"-"]
["1. Kizárólagos hőtermelés - szénhidrogének ",1.1200000000000001,"Földgáz"]
["2. Kizárólagos hőtermelés - biogáz, biometán",0.6,"Biogáz, biometán"]
["3. Kizárólagos hőtermelés - szénféleségek",1.25,"Szénféleségek"]
["4.Kizárólagos hőtermelés - tüzifa, faapríték, fahulladék, biobrikett, egyéb bio tüzelőanyagok",0.6,"Tűzifa, faapríték, fahulladék, biobrikett, egyéb bio tüzelőanyagok"]
["5. Kizárólagos hőtermelés - ipari hulladékhő",0,"Ipari hulladékhő"]
["6. Kizárólagos hőtermelés - szoláris- és geotermikus energia",0,"Szoláris-, geotermikus-, szél- és vízenergia"]
["7. Nukleáris energia",0,"Nukleárisenergia"]
["8. KET kombinált ciklusú erőművi blokkban - nem megújuló",0.54,"Földgáz"]
["8. KET kombinált ciklusú erőművi blokkban - megújuló ",0.32400000000000001,"Tűzifa, faapríték, fahulladék, biobrikett, egyéb bio tüzelőanyagok"]
["9.KET hagyományos gőz-körfolyamatú erőművi blokkban  - nem megújuló",0.87,"Földgáz"]
["9.KET hagyományos gőz-körfolyamatú erőművi blokkban  - megújuló",0.52200000000000002,"Tűzifa, faapríték, fahulladék, biobrikett, egyéb bio tüzelőanyagok"]
["10. KET hagyományos gőz-körfolyamatú erőművi blokkban kommunális hulladékégetésével",0.7,"Kommunális hulladék"]
["11. KET 1.200 kWe villamos egységteljesítményt meghaladó gázmotorral  - nem megújuló",0.55000000000000004,"Földgáz"]
["11. KET 1.200 kWe villamos egységteljesítményt meghaladó gázmotorral - megújuló",0.33,"Biogáz, biometán"]
["12. KET 1.200 kWe villamos egységteljesítményt nem meghaladó gázmotorral  - nem megújuló",0.72,"Földgáz"]
["12. KET 1.200 kWe villamos egységteljesítményt nem meghaladó gázmotorral megújuló",0.432,"Biogáz, biometán"]
["13. KET hőhasznosító kazánnal ellátott gázturbinás erőműben  - nem megújuló",0.82,"Földgáz"]
["13. KET hőhasznosító kazánnal ellátott gázturbinás erőműben - megújuló",0.49199999999999999,"Biogáz, biometán"]
["14. KET hőszivattyúval  - nem megújuló",0.71,"Hőszivattyú"]
["14. KET hőszivattyúval - megújuló",0.42599999999999999,"Hőszivattyú"]
[]
[]
["KET = Kapcsolt Energia Termelés"]

{"sheet":"2.táblázat","index":2,"n_rows":5,"n_cols":2,"rows_kept":5,"cut":false,"hidden":false,"merged":[[0,0,0,1]]}
["A hőtermeléshez és primer oldali keringtetéshez felhasznált villamos energia aránya a kiadott hőmennyiségre vetítve (avil) a hőtermelő által kiadott hőmennyiség (Q [MWh/év]) függvényében "]
["Q (MWh/év)","avill (kWh/kWh)"]
["Q < 27.800",1.0999999999999999E-2]
["27.800 <= Q < 139.000",8.0000000000000002E-3]
["139.000 =< Q",6.0000000000000001E-3]

{"sheet":"3.táblázat","index":3,"n_rows":21,"n_cols":2,"rows_kept":21,"cut":false,"hidden":false,"merged":[[20,0,20,1]]}
["Primer energiaforrás","Megújuló részarány"]
[null,"eSUS,távhő,i"]
["-",0]
[]
["Szén",0]
["Szénféleségek",0]
["Tűzifa, faapríték, fahulladék, biobrikett, egyéb bio tüzelőanyagok",1]
["Szoláris-, geotermikus-, szél- és vízenergia",1]
["Nukleárisenergia",0]
["Ipari hulladékhő",1]
["Kommunális hulladék",0.5]
["Tüzelőolajok",0]
["Fűtőolajok",0]
["Földgáz",0]
["PB/SNG-gáz",0]
["Kamragáz",0]
["Kohógáz",0]
["Biogáz, biometán",1]
["Hőszivattyú",{"$f":"1-1/SPF","v":0.66666666666666674}]
[]
["* Forrás: \nMagyar Energetika  2017/1.\n"]